bitfinex/quotes_ETHUSD_20250804
["timestamp","ask_amount","ask_price","bid_price","bid_amount"]
[1754328204076,5.7000756,3703.6,3703.5,0.001]
[1754328204385,5.7000756,3703.6,3703.5,1.8639]
[1754328204591,3.0,3703.6,3703.5,0.5942]
[1754328204741,0.1344,3704.1,3703.5,1.8639]
[1754328205146,2.69978401,3704.0,3703.5,1.8639]
[1754328205346,2.69985801,3703.9,3703.6,1.7285]
[1754328205681,3.0,3703.9,3703.7,1.7285]
[1754328205841,1.1644,3704.4,3703.8,4.7968]
[1754328206047,2.69971872,3704.1,3703.8,4.9312]
[1754328206246,3.0,3704.0,3703.8,6.2009]
[1754328206591,2.69971872,3704.1,3703.8,6.2009]
[1754328206801,0.1344,3704.4,3703.9,1.7285]
[1754328207093,3.1344,3704.4,3703.8,4.4724]
[1754328207248,0.1344,3704.4,3703.8,4.4724]
[1754328207444,2.69971604,3704.1,3703.8,4.4724]
[1754328207693,3.0,3704.2,3703.9,1.2697]
[1754328207900,3.0,3704.2,3703.8,4.4724]
[1754328207901,2.6998569,3703.9,3703.8,0.1344]
[1754328208194,2.6998569,3703.9,3703.8,4.4724]
[1754328208476,2.69983322,3704.0,3703.8,4.4724]
[1754328208676,2.69983322,3704.0,3703.8,0.1344]
[1754328208880,2.6998569,3703.9,3703.8,0.1344]
[1754328209178,2.70005367,3703.7,3703.6,4.338]
[1754328209386,2.7000756,3703.6,3703.5,0.001]
[1754328209569,6.8644756,3703.6,3703.5,0.001]
[1754328210797,7.3201756,3703.6,3703.5,0.001]
[1754328210997,8.60562422,3703.6,3703.5,0.001]
[1754328212087,9.15562422,3703.6,3703.5,0.001]
[1754328212389,36.2501485,3703.5,3703.4,1e-08]
[1754328212561,12.2901485,3703.5,3703.4,1e-08]
[1754328212761,43.91771577,3703.5,3703.4,1e-08]
[1754328213176,43.91771577,3703.5,3703.1,1e-08]
[1754328213177,6.25036724,3703.2,3703.1,1e-08]
[1754328213494,10.58736724,3703.2,3703.1,1e-08]
[1754328213662,42.29036724,3703.2,3703.1,1e-08]
[1754328215678,37.95336724,3703.2,3703.1,1e-08]
[1754328215986,40.6820291,3703.2,3703.1,1e-08]
[1754328216188,45.0190291,3703.2,3703.1,1e-08]
[1754328216759,45.0190291,3703.2,3702.1,1.333]
[1754328216760,2.70073189,3702.7,3702.1,0.1344]
[1754328217086,40.07149103,3702.7,3702.1,0.1344]
[1754328217385,44.00049375,3702.7,3701.8,1.1986]
[1754328217686,44.46939375,3702.7,3701.8,0.1344]
[1754328217892,44.46939375,3702.7,3701.8,1.333]
[1754328218363,2.70122725,3702.1,3701.5,0.4472]
[1754328218564,2.70153447,3701.6,3701.5,0.5816]
[1754328218792,2.70153447,3701.6,3701.5,1.7802]
[1754328219014,2.70148164,3701.7,3701.5,1.7802]
[1754328219168,3.0,3701.6,3700.8,0.4472]
[1754328219354,2.70170308,3701.4,3701.2,0.4472]
[1754328219775,0.1344,3701.8,3701.3,1.1986]
[1754328219985,3.0,3702.0,3701.4,0.4472]
[1754328220153,2.70148038,3701.7,3701.4,0.5816]
[1754328220362,3.0,3701.9,3701.5,1.1986]
[1754328220661,2.70083027,3702.6,3701.6,0.5816]
[1754328220662,4.4704,3702.5,3701.6,0.5816]
[1754328220862,2.70095073,3702.4,3702.0,0.1344]
[1754328221076,0.1344,3702.5,3702.1,1.6458]
[1754328221251,2.70103161,3702.3,3702.2,1.6458]
[1754328221457,5.70103161,3702.3,3702.2,1.6458]
[1754328221657,2.7011696,3702.1,3702.0,0.1344]
[1754328221851,5.7011696,3702.1,3702.0,0.1344]
[1754328222057,2.70126886,3702.0,3701.7,1.333]
[1754328222300,2.70126886,3702.0,3701.8,1.6458]
[1754328222501,2.70126886,3702.0,3701.7,0.1344]
[1754328222786,3.0,3702.1,3701.8,1.6458]
[1754328223004,3.0,3702.1,3701.9,1.6458]
[1754328223304,5.5701,3702.9,3702.0,1.6458]
[1754328223520,2.70094948,3702.5,3702.0,1.7802]
[1754328223676,3.0,3702.4,3702.1,1.6458]
[1754328223870,5.70080566,3702.6,3702.0,0.1344]
[1754328224075,3.0,3702.4,3702.2,1.6458]
[1754328224296,3.0,3702.4,3702.3,1.6458]
[1754328224628,3.0,3702.5,3702.3,1.6458]
[1754328224775,2.70081228,3702.6,3702.4,1.6458]
[1754328224776,3.0,3702.6,3702.4,1.6458]
[1754328225080,3.0,3702.6,3702.5,1.6458]
[1754328225408,3.25204996,3702.6,3702.5,1.6458]
[1754328225926,0.25204996,3702.6,3702.5,1.6458]
[1754328226202,2.70080077,3702.7,3702.5,1.6458]
[1754328226405,2.70087778,3702.5,3702.4,0.1344]
[1754328226605,2.70087778,3702.5,3702.3,4.335]
[1754328226996,2.70080302,3702.7,3702.3,4.335]
[1754328227245,2.95297484,3702.6,3702.4,1.6458]
[1754328227523,2.95297484,3702.6,3702.3,4.335]
[1754328227524,2.70081987,3702.6,3702.5,1.6458]
[1754328227817,2.70081987,3702.6,3702.2,0.1344]
[1754328227818,2.70102368,3702.3,3702.2,0.1344]
[1754328228126,5.70097911,3702.4,3702.3,1.6458]
[1754328228603,2.70102368,3702.3,3702.2,0.1344]
[1754328228812,5.70097761,3702.4,3702.2,0.1344]
[1754328229009,3.0,3702.4,3702.2,1.7802]
[1754328229209,3.0,3702.4,3702.3,1.7802]
[1754328229384,5.70095073,3702.4,3702.3,1.7802]
[1754328229581,3.0,3702.4,3702.3,1.7802]
[1754328229784,0.1344,3703.3,3702.3,1.95822]
[1754328229996,0.25224316,3703.2,3702.4,1.6458]
[1754328230197,0.25224316,3703.1,3702.9,0.1344]
[1754328230380,0.25224316,3703.2,3703.1,0.1344]
[1754328231111,2.9526104,3703.2,3703.1,0.1344]
[1754328231514,2.70049008,3703.1,3702.9,4.334]
[1754328231699,0.25224316,3703.0,3702.9,4.4684]
[1754328231900,0.25224316,3703.1,3702.9,4.91524]
[1754328232104,0.25224316,3703.4,3702.9,0.1344]
[1754328232294,0.002,3703.9,3702.9,0.1344]
[1754328232295,0.25224316,3703.3,3703.0,4.334]
[1754328232492,2.95264142,3703.2,3703.1,0.1344]
[1754328232917,0.25224316,3703.2,3703.1,0.1344]
[1754328233281,2.9526104,3703.2,3703.1,0.1344]
[1754328233815,2.70053083,3703.0,3702.9,4.333]
[1754328233986,2.95277399,3703.0,3702.9,4.4674]
[1754328234180,2.95277399,3703.0,3702.9,0.1344]
[1754328234386,2.70078342,3702.7,3702.2,1.6458]
[1754328234616,2.95304841,3702.6,3702.5,0.1344]
[1754328234782,2.95304841,3702.6,3702.5,4.4674]
[1754328235112,2.70080525,3702.6,3702.5,0.1344]
[1754328235820,7.47505324,3702.6,3702.5,0.1344]
[1754328236115,2.70136893,3701.9,3701.5,4.332]
[1754328236317,2.70139082,3701.8,3701.5,5.9778]
[1754328236679,2.70139082,3701.8,3701.7,0.1344]
[1754328238719,1.3685,3702.3,3701.7,0.5816]
[1754328238891,2.70136971,3701.9,3701.7,0.5816]
[1754328239092,2.70126453,3702.0,3701.7,0.5816]
[1754328239290,2.70132424,3701.9,3701.7,0.5816]
[1754328239514,2.70132424,3701.9,3701.7,0.1344]
[1754328240308,2.70138851,3701.8,3701.7,0.1344]
[1754328241309,5.70138851,3701.8,3701.7,0.1344]
[1754328241511,2.70160745,3701.5,3701.4,4.4654]
[1754328241712,2.70160745,3701.5,3701.4,0.1344]
[1754328242097,3.0,3701.7,3701.2,0.1344]
[1754328242392,0.1344,3702.2,3701.4,0.1344]
[1754328242727,3.0,3701.6,3701.4,0.1344]
[1754328242929,3.0,3701.6,3700.8,2.70210999]
[1754328242930,1.1823,3701.5,3700.0,5.4216]
[1754328243223,0.1344,3701.3,3700.2,1.1078]
[1754328243428,3.0,3700.9,3700.4,0.1344]
[1754328243722,3.0,3701.0,3700.4,0.1344]
[1754328244020,0.1344,3701.1,3700.4,1.2422]
[1754328244224,2.70233752,3700.5,3700.4,0.1344]
[1754328244426,0.43167,3701.1,3700.4,4.331]
[1754328244735,4.881,3701.6,3700.4,6.0291]
[1754328244736,0.38755293,3701.0,3700.4,6.0291]
[1754328244898,0.25315293,3700.9,3700.4,1.6981]
[1754328245093,3.0,3700.7,3700.5,1.5637]
[1754328245294,3.0,3700.7,3700.0,5.4216]
[1754328245295,2.70262965,3700.1,3700.0,5.4216]
[1754328245721,5.70262965,3700.1,3700.0,5.4216]
[1754328246040,6.88492965,3700.1,3700.0,5.4216]
[1754328246451,5.70262965,3700.1,3700.0,5.4216]
[1754328246745,6.88492965,3700.1,3700.0,5.4216]
[1754328247239,7.63953388,3700.1,3700.0,5.4216]
[1754328247410,7.01932965,3700.1,3700.0,5.4216]
[1754328247611,5.83702965,3700.1,3700.0,5.4216]
[1754328248012,7.01932965,3700.1,3700.0,5.4216]
[1754328248614,7.46822965,3700.1,3700.0,5.4216]
[1754328249027,8.01822965,3700.1,3700.0,5.4216]
[1754328249244,9.07450396,3700.1,3700.0,5.4216]
[1754328249922,39.07450396,3700.1,3700.0,5.4216]
[1754328250824,39.07450396,3700.1,3699.8,0.5988]
[1754328251020,6.25277575,3699.9,3699.8,0.5988]
[1754328251222,6.25306798,3699.5,3699.4,1e-08]
[1754328251422,43.31272984,3699.5,3699.4,1e-08]
[1754328251626,43.94502984,3699.5,3699.4,1e-08]
[1754328251849,14.49502984,3699.5,3699.4,1e-08]
[1754328252613,9.61402984,3699.5,3699.4,1e-08]
[1754328252946,6.88536798,3699.5,3699.4,1e-08]
[1754328253248,5.70306798,3699.5,3699.4,1e-08]
[1754328253449,10.03406798,3699.5,3699.4,1e-08]
[1754328253615,10.03406798,3699.5,3699.4,1.10780001]
[1754328253616,3.0,3699.5,3699.4,1.10780001]
[1754328253821,3.0,3699.5,3699.4,1.24220001]
[1754328254321,0.1344,3700.9,3699.4,1.69662717]
[1754328254633,0.25187419,3701.1,3700.4,0.1344]
[1754328254930,0.1344,3701.2,3700.5,1.1078]
[1754328255130,3.0,3701.0,3700.5,1.1078]
[1754328255315,0.25187419,3700.9,3700.4,0.1344]
[1754328255513,2.47608932,3700.9,3700.4,0.1344]
[1754328255774,2.47608932,3700.9,3700.1,1.1078]
[1754328255775,3.0,3700.6,3700.1,1.1078]
[1754328255935,0.25187419,3700.5,3699.7,2.70290457]
[1754328256259,2.22421513,3700.9,3700.2,1.1078]
[1754328256260,1.04191513,3700.9,3700.2,1.1078]
[1754328256446,5.70219185,3700.7,3700.2,1.1078]
[1754328256646,3.0,3700.6,3700.3,1.1078]
[1754328256850,3.0,3700.7,3700.4,1.1078]
[1754328257021,2.70250822,3700.3,3700.0,1.1078]
[1754328257220,2.70250822,3700.3,3699.6,2.70294711]
[1754328257454,2.70250822,3700.3,3700.1,1.1078]
[1754328257664,2.70241587,3700.4,3700.1,1.1078]
[1754328258242,2.70249828,3700.3,3700.1,1.1078]
[1754328258445,2.70249828,3700.3,3699.4,7.03412384]
[1754328258650,3.0,3701.2,3699.4,4.33100001]
[1754328258835,0.25158461,3701.1,3700.2,2.70251678]
[1754328259162,3.0,3701.0,3700.0,4.33]
[1754328259317,2.95366329,3700.9,3700.1,2.7026184]
[1754328259523,0.25158461,3700.8,3700.1,2.7026184]
[1754328259734,0.25158461,3700.8,3700.2,2.70255076]
[1754328260023,3.0,3700.4,3699.8,2.70282853]
[1754328260237,2.70233865,3700.5,3699.8,2.70282853]
[1754328260438,2.70243708,3700.4,3699.7,3.81069785]
[1754328260633,2.70250584,3700.3,3699.7,1.1078]
[1754328260858,2.70243297,3700.4,3699.7,3.81070131]
[1754328261073,2.70235604,3700.5,3699.8,2.70282696]
[1754328261725,2.70249126,3700.3,3699.7,1.1078]
[1754328262321,2.70256895,3700.2,3699.7,1.1078]
[1754328262538,3.88464418,3700.5,3699.6,7.03297858]
[1754328262735,1.1823,3700.5,3699.6,7.03297858]
[1754328263026,2.70246476,3700.4,3699.7,3.81071804]
[1754328263238,2.70236254,3700.5,3699.8,3.81063776]
[1754328263438,2.70242756,3700.4,3699.8,3.81063776]
[1754328263960,3.0,3700.8,3699.8,1.1078]
[1754328264169,2.70229938,3700.6,3699.9,1.1078]
[1754328264466,3.0,3700.4,3699.9,1.1078]
[1754328264962,5.70226449,3700.6,3699.9,1.1078]
[1754328265264,2.7027027,3700.0,3699.6,5.4378]
[1754328265628,2.70279195,3699.9,3699.6,5.4378]
[1754328266030,2.70279195,3699.9,3699.8,0.1344]
[1754328266263,1.1823,3700.5,3699.8,0.1344]
[1754328266559,2.70272442,3700.0,3699.8,0.1344]
[1754328266725,3.0,3700.7,3700.3,0.1344]
[1754328266930,5.70241055,3700.4,3700.3,0.1344]
[1754328267334,6.88471055,3700.4,3700.3,0.1344]
[1754328267728,0.1344,3700.8,3700.3,0.1344]
[1754328268166,2.70239036,3700.5,3700.3,0.1344]
[1754328268643,1.3167,3700.8,3700.3,0.1344]
[1754328268841,0.25217437,3700.7,3699.9,2.70274897]
[1754328269040,3.0,3700.5,3699.7,2.70291899]
[1754328269240,5.70235313,3700.5,3700.3,0.1344]
[1754328269470,3.88471055,3700.4,3700.3,0.1344]
[1754328269964,2.7027504,3700.0,3699.7,4.328]
[1754328270139,1.1823,3700.3,3699.8,4.21]
[1754328270341,2.70267732,3700.1,3699.8,4.21]
[1754328270662,2.70265128,3700.1,3699.8,4.21]
[1754328270862,1.1823,3700.2,3700.0,0.1344]
[1754328271039,2.70265701,3700.1,3700.0,0.1344]
[1754328271954,2.70255926,3700.2,3700.0,0.1344]
[1754328272292,0.1344,3700.7,3700.0,0.1344]
[1754328272293,4.328,3700.6,3700.0,0.1344]
[1754328272467,2.70221344,3700.7,3700.0,0.1344]
[1754328272702,0.25256022,3700.6,3700.0,3.86725797]
[1754328272850,5.95475169,3700.7,3700.6,0.1344]
[1754328273854,3.25256022,3700.7,3700.6,0.1344]
[1754328274181,0.25256022,3700.7,3700.6,0.5657]
[1754328274471,0.25256022,3700.9,3700.6,0.5657]
[1754328274783,0.25256022,3701.0,3700.6,0.4313]
[1754328274979,0.25256022,3701.0,3700.3,3.86705263]
[1754328274980,0.25256022,3700.9,3700.8,0.1344]
[1754328275278,0.001,3701.1,3700.9,0.4313]
[1754328275645,0.001,3701.1,3701.0,0.4313]
[1754328275847,0.001,3701.1,3701.0,0.5657]
[1754328276456,3.001,3701.1,3701.0,0.1344]
[1754328276666,3.25390841,3701.1,3701.0,0.1344]
[1754328277486,0.25390841,3701.1,3701.0,0.5657]
[1754328277755,0.001,3701.1,3701.0,0.5657]
[1754328278594,2.70289943,3701.1,3701.0,0.5657]
[1754328278756,2.70289943,3701.1,3701.0,0.1344]
[1754328278757,0.25390841,3701.1,3701.0,0.1344]
[1754328278957,2.95580784,3701.1,3701.0,0.1344]
[1754328279278,1.42540841,3701.1,3701.0,0.1344]
[1754328279960,0.25390841,3701.1,3701.0,0.1344]
[1754328280354,0.25378141,3701.1,3701.0,0.1344]
[1754328280561,0.001,3701.1,3701.0,0.1344]
[1754328280780,1.1725,3701.1,3701.0,0.1344]
[1754328281183,0.001,3701.1,3701.0,0.1344]
[1754328281385,2.70289943,3701.1,3701.0,0.1344]
[1754328281657,5.08481057,3701.1,3700.8,0.1344]
[1754328281875,3.87440484,3701.1,3700.8,0.1344]
[1754328282084,3.87440484,3701.1,3700.8,0.5657]
[1754328282259,0.001,3701.1,3700.8,0.5657]
[1754328282463,0.001,3701.1,3700.9,0.4313]
[1754328282992,0.001,3701.1,3701.0,0.5657]
[1754328284160,0.001,3701.1,3701.0,3.26767243]
[1754328284463,0.001,3701.1,3701.0,8.75727243]
[1754328287321,0.001,3701.1,3701.0,7.59267243]
[1754328287486,0.001,3701.1,3701.0,8.75727243]
[1754328290970,0.2526984,3701.8,3701.7,2.70146149]
[1754328291200,0.2526984,3702.5,3701.7,7.15786149]
[1754328291404,0.2526984,3702.4,3702.1,0.1344]
[1754328291591,0.2526984,3702.5,3702.2,4.7533]
[1754328291789,0.2526984,3702.4,3702.3,0.1344]
[1754328291991,1.4241984,3702.6,3702.3,0.1344]
[1754328292190,0.2526984,3702.5,3702.3,0.1344]
[1754328292509,1.1715,3702.4,3702.2,4.322]
[1754328292810,3.0,3702.8,3702.6,0.1344]
[1754328292990,1.1715,3702.7,3702.3,2.83539297]
[1754328293192,3.0,3703.1,3702.5,2.70086659]
[1754328293401,0.5717,3703.3,3702.5,2.70086659]
[1754328293402,0.25216723,3703.0,3702.6,4.322]
[1754328293607,0.25216723,3703.2,3703.0,0.1344]
[1754328293805,0.14236672,3703.1,3702.4,4.322]
[1754328293979,2.70087778,3702.5,3702.4,4.322]
[1754328294302,0.1344,3703.0,3702.3,0.1344]
[1754328294506,3.0,3702.8,3702.4,4.321]
[1754328294708,1.1715,3702.7,3702.4,4.321]
[1754328295002,2.70081371,3702.6,3702.5,4.321]
[1754328295301,4.6088,3702.6,3702.5,4.321]
[1754328295474,4.1715,3702.6,3701.9,2.70130656]
[1754328295668,4.1715,3702.6,3702.5,0.1344]
[1754328295881,3.0,3702.6,3702.5,4.4554]
[1754328296202,0.002,3702.9,3702.5,4.8867]
[1754328296423,0.002,3702.9,3702.6,0.4313]
[1754328296634,1.1735,3702.9,3702.8,0.1344]
[1754328296916,1.1735,3702.9,3702.8,4.4554]
[1754328298270,3.87408602,3702.9,3702.8,0.1344]
[1754328298468,3.87408602,3702.9,3701.3,3.25171197]
[1754328298469,5.70073189,3702.7,3702.6,4.32]
[1754328298678,2.70087778,3702.5,3702.4,4.4544]
[1754328298890,1.1715,3702.5,3702.4,4.4544]
[1754328299084,3.87237778,3702.5,3702.4,0.1344]
[1754328299289,1.1715,3702.5,3702.4,4.4544]
[1754328299711,3.0,3702.7,3702.4,4.4544]
[1754328299875,3.0,3702.7,3702.5,0.4313]
[1754328300078,0.002,3702.9,3702.6,7.45103634]
[1754328300279,0.002,3702.9,3702.6,7.4510937]
[1754328300477,0.002,3702.9,3702.7,0.4313]
[1754328300901,0.002,3702.9,3702.8,2.83505896]
[1754328301102,0.002,3702.9,3702.8,0.5657]
[1754328301301,0.002,3702.9,3702.8,3.26635896]
[1754328301505,0.002,3702.9,3702.8,0.1344]
[1754328301907,0.002,3702.9,3702.8,3.30465896]
[1754328302108,0.002,3702.9,3702.8,4.45735896]
[1754328306498,0.002,3702.9,3702.8,3.30465896]
[1754328306896,0.002,3702.9,3702.8,4.921]
[1754328307495,0.002,3702.9,3702.8,4.4514]
[1754328307699,1.1367,3702.9,3702.8,0.1344]
[1754328307914,1.1367,3702.9,3702.8,4.4514]
[1754328308312,0.002,3702.9,3702.8,4.4514]
[1754328308530,0.002,3702.9,3702.8,7.15205896]
[1754328308736,0.002,3702.9,3702.8,7.62165896]
[1754328309932,0.002,3702.9,3702.8,11.83165896]
[1754328310323,0.002,3702.9,3702.8,12.98435896]
[1754328312439,0.002,3702.9,3702.8,7.51465896]
[1754328312604,0.002,3702.9,3702.8,11.82965896]
[1754328312799,0.002,3702.9,3702.8,11.36005896]
[1754328313141,0.002,3702.9,3702.8,11.82965896]
[1754328313857,0.002,3702.9,3702.8,12.98235896]
[1754328314212,0.002,3702.9,3702.8,11.82965896]
[1754328315243,0.002,3702.9,3702.8,11.36005896]
[1754328317445,0.002,3702.9,3702.8,11.82965896]
[1754328317746,0.002,3702.9,3702.8,11.36005896]
[1754328318246,0.002,3702.9,3702.8,11.82965896]
[1754328318627,0.002,3702.9,3702.8,7.04505896]
[1754328318953,1.1367,3702.9,3702.8,7.04505896]
[1754328319122,1.1367,3702.9,3702.8,11.35805896]
[1754328319606,0.002,3702.9,3702.8,11.35805896]
[1754328320053,1.1367,3702.9,3702.8,11.35805896]
[1754328320353,0.002,3702.9,3702.8,8.6574]
[1754328320516,1.1367,3702.9,3702.8,8.6574]
[1754328321554,0.002,3702.9,3702.8,11.35805896]
[1754328321846,0.002,3702.9,3702.8,11.82765896]
[1754328322414,0.002,3702.9,3702.8,12.98035896]
[1754328322614,0.002,3702.9,3702.8,11.35705896]
[1754328322812,1.1367,3702.9,3702.8,11.35705896]
[1754328323013,1.1367,3702.9,3702.8,7.04505896]
[1754328323255,1.1367,3702.9,3702.8,8.6564]
[1754328325355,0.002,3702.9,3702.8,11.82665896]
[1754328325662,0.002,3702.9,3702.8,12.97935896]
[1754328326352,0.002,3702.9,3702.8,11.35705896]
[1754328326533,0.002,3702.9,3702.8,7.04505896]
[1754328326741,1.1367,3702.9,3702.8,11.35605896]
[1754328327454,1.1367,3702.9,3702.8,8.6544]
[1754328327649,1.1367,3702.9,3702.8,11.35505896]
[1754328327835,1.1367,3702.9,3702.8,8.6544]
[1754328329935,1.1367,3702.9,3702.8,4.3444]
[1754328330331,1.1367,3702.9,3702.8,8.6534]
[1754328332660,0.002,3702.9,3702.8,11.35405896]
[1754328333031,0.002,3702.9,3702.8,11.82415896]
[1754328333837,0.002,3702.9,3702.8,12.99585896]
[1754328334354,0.002,3702.9,3702.8,11.82415896]
[1754328334770,0.002,3702.9,3702.8,11.35405896]
[1754328335060,0.002,3702.9,3702.8,11.82415896]
[1754328336471,0.002,3702.9,3702.8,7.51515896]
[1754328336635,1.1468,3702.9,3702.8,7.04505896]
[1754328337067,1.1468,3702.9,3702.8,11.35205896]
[1754328337440,1.1468,3702.9,3702.8,4.3444]
[1754328337743,1.1468,3702.9,3702.8,8.6514]
[1754328338547,0.002,3702.9,3702.8,11.35205896]
[1754328340976,1.1468,3702.9,3702.8,8.6514]
[1754328341684,1.1468,3702.9,3702.8,11.35205896]
[1754328341861,0.002,3702.9,3702.8,11.35205896]
[1754328342742,1.1468,3702.9,3702.8,11.35205896]
[1754328343151,1.1468,3702.9,3702.8,8.6514]
[1754328343882,1.1468,3702.9,3702.8,11.35205896]
[1754328344263,1.1468,3702.9,3702.8,8.6514]
[1754328344769,1.6037,3702.9,3702.8,8.6494]
[1754328344977,4.23458274,3702.9,3702.8,4.3444]
[1754328345147,3.0,3702.8,3702.0,6.486]
[1754328345351,2.70087778,3702.5,3702.4,0.1344]
[1754328345552,2.70087778,3702.5,3702.4,4.4394]
[1754328345765,3.40121604,3702.5,3702.4,4.4394]
[1754328345965,5.00291604,3702.5,3702.4,4.4394]
[1754328346191,2.30203826,3702.5,3702.4,4.4394]
[1754328346393,1.1448,3702.5,3702.4,4.4394]
[1754328348259,3.84567778,3702.5,3702.4,4.4394]
[1754328348463,3.84567778,3702.5,3702.4,0.1344]
[1754328348669,2.70124257,3702.0,3701.9,4.33152541]
[1754328348867,4.30294257,3702.0,3701.9,8.63552541]
[1754328349101,1.1448,3702.0,3701.9,8.63552541]
[1754328349785,3.84604257,3702.0,3701.9,8.63552541]
[1754328349992,4.05724257,3702.0,3701.9,8.63552541]
[1754328350757,4.05724257,3702.0,3701.9,8.63452541]
[1754328351388,4.7330826,3702.0,3701.9,8.63452541]
[1754328352373,7.7330826,3702.0,3701.9,8.63452541]
[1754328352772,7.5218826,3702.0,3701.9,8.63452541]
[1754328353712,7.7330826,3702.0,3701.9,8.63452541]
[1754328354065,5.03184003,3702.0,3701.9,8.63452541]
[1754328354306,4.82064003,3702.0,3701.9,8.63452541]
[1754328354767,7.5218826,3702.0,3701.9,8.63452541]
[1754328355267,4.82064003,3702.0,3701.9,8.63452541]
[1754328355467,7.5218826,3702.0,3701.9,8.63452541]
[1754328355681,4.82064003,3702.0,3701.9,8.63452541]
[1754328359090,3.0,3702.0,3701.9,8.63452541]
[1754328359281,6.84604257,3702.0,3701.9,8.63452541]
[1754328360329,4.1448,3702.0,3701.9,8.63452541]
[1754328360819,6.84604257,3702.0,3701.9,8.63452541]
[1754328361416,6.84604257,3702.0,3701.9,4.33152541]
[1754328361600,8.25225772,3702.0,3701.9,4.33152541]
[1754328362184,7.80075772,3702.0,3701.9,4.33152541]
[1754328364311,3.0,3702.0,3701.9,4.33152541]
[1754328364512,0.002,3702.5,3701.9,7.60164095]
[1754328364813,3.0,3702.3,3702.0,4.7334]
[1754328364978,3.0,3702.3,3702.1,0.4344]
[1754328365314,1.1764,3702.2,3701.9,4.33152541]
[1754328365513,2.70124257,3702.0,3701.9,4.33152541]
[1754328365678,7.98702277,3702.0,3701.9,4.33152541]
[1754328369887,37.98702277,3702.0,3701.9,4.33152541]
[1754328371108,42.28502277,3702.0,3701.9,4.33152541]
[1754328371290,55.52885768,3702.0,3701.9,4.33152541]
[1754328371616,11.83352277,3702.0,3701.9,4.33152541]
[1754328371993,5.70124257,3702.0,3701.9,4.33152541]
[1754328372417,0.002,3702.5,3701.9,4.76592541]
[1754328372418,2.70118344,3702.1,3701.9,4.76592541]
[1754328372588,2.70118344,3702.1,3702.0,4.7314]
[1754328372589,5.70118344,3702.1,3702.0,4.7314]
[1754328372787,3.0,3702.4,3702.0,4.7314]
[1754328372788,2.70096703,3702.4,3702.0,4.7314]
[1754328373014,0.002,3702.5,3702.0,4.297]
[1754328373289,0.002,3702.5,3702.1,1.5562]
[1754328373494,0.002,3702.5,3701.9,4.33152541]
[1754328373495,2.70102368,3702.3,3702.2,4.297]
[1754328373701,3.87742368,3702.3,3702.2,4.297]
[1754328374110,3.87742368,3702.3,3702.2,4.296]
[1754328374631,2.70121517,3702.1,3701.9,4.33152541]
[1754328374833,3.87764257,3702.0,3701.9,4.33152541]
[1754328375140,6.87764257,3702.0,3701.9,4.33152541]
[1754328375320,7.01204257,3702.0,3701.9,4.33152541]
[1754328376593,7.46354257,3702.0,3701.9,4.33152541]
[1754328376795,8.97541116,3702.0,3701.9,4.33152541]
[1754328378538,8.52391116,3702.0,3701.9,4.33152541]
[1754328379240,7.34751116,3702.0,3701.9,4.33152541]
[1754328379419,8.52391116,3702.0,3701.9,4.33152541]
[1754328380200,8.97541116,3702.0,3701.9,4.33152541]
[1754328381798,2.70182643,3701.2,3701.1,0.001]
[1754328382005,5.97200907,3701.2,3701.1,0.001]
[1754328382230,7.28280907,3701.2,3701.1,0.001]
[1754328383625,3.0,3700.5,3699.3,4.293]
[1754328383818,2.70292185,3699.7,3699.5,4.293]
[1754328384207,3.0,3700.2,3699.6,1.5572]
[1754328384469,5.4694,3700.3,3699.6,1.1228]
[1754328384470,2.70292185,3699.7,3699.6,1.1228]
[1754328384639,3.0,3700.3,3699.6,1.1228]
[1754328384993,5.70261498,3700.2,3699.7,4.7274]
[1754328385252,5.70292185,3699.7,3699.6,0.001]
[1754328385412,5.70292185,3699.7,3699.6,4.294]
[1754328385951,3.0,3699.7,3699.6,4.7284]
[1754328386324,4.293,3700.2,3699.6,4.7284]
[1754328386518,2.70255661,3700.2,3699.7,1.5562]
[1754328386749,2.70255661,3700.2,3699.8,5.8482]
[1754328386959,2.70255661,3700.2,3699.9,0.4344]
[1754328387154,3.0,3700.4,3700.0,0.4344]
[1754328387356,2.70253184,3700.3,3700.1,0.4344]
[1754328387548,2.70248358,3700.3,3700.2,0.4344]
[1754328388071,2.70238566,3700.5,3700.2,0.4344]
[1754328388243,3.0,3700.5,3700.2,1.5562]
[1754328388432,3.0,3700.5,3700.3,1.5562]
[1754328388629,2.70209267,3700.9,3700.4,1.5562]
[1754328388834,3.0,3700.8,3700.5,1.5562]
[1754328389064,3.0,3700.8,3699.6,0.001]
[1754328389065,0.55,3700.6,3699.6,0.001]
[1754328389247,2.70292185,3699.7,3699.6,0.001]
[1754328390348,3.87932185,3699.7,3699.6,0.001]
[1754328390929,6.87932185,3699.7,3699.6,0.001]
[1754328391531,3.25306798,3699.5,3699.4,1e-08]
[1754328391778,5.70306798,3699.5,3699.4,1e-08]
[1754328392084,13.16833696,3699.5,3699.4,1e-08]
[1754328392960,13.16833696,3699.5,3698.8,0.5998]
[1754328392961,2.70321412,3699.3,3699.0,1e-08]
[1754328393169,5.70336027,3699.1,3699.0,1e-08]
[1754328393478,36.25336027,3699.1,3699.0,1e-08]
[1754328393638,37.75106027,3699.1,3699.0,1e-08]
[1754328393837,40.47972213,3699.1,3699.0,1e-08]
[1754328395559,35.70336027,3699.1,3699.0,1e-08]
[1754328395760,5.70336027,3699.1,3699.0,1e-08]
[1754328395961,4.291,3699.2,3699.0,0.47200001]
[1754328396475,5.70336027,3699.1,3699.0,0.47200001]
[1754328397169,6.77106027,3699.1,3699.0,1e-08]
[1754328397374,12.14388858,3699.1,3699.0,1e-08]
[1754328397675,6.25365263,3698.7,3698.6,1e-08]
[1754328397847,40.54465263,3698.7,3698.6,1e-08]
[1754328398049,42.04235263,3698.7,3698.6,1e-08]